bitfinex/quotes_ETHUSD_20241004
["timestamp","ask_amount","ask_price","bid_price","bid_amount"]
[1728045927829,4.19941,2381.3,2380.9,0.06054216]
[1728045927985,4.19959,2381.2,2380.9,0.06054216]
[1728045928314,5.09741781,2381.3,2380.9,0.06054216]
[1728045928889,4.19959,2381.2,2380.9,0.06054216]
[1728045929220,5.09734781,2381.3,2380.9,0.06054216]
[1728045929388,4.19956,2381.2,2380.9,0.06054216]
[1728045929594,5.52631759,2381.2,2380.9,0.06054216]
[1728045930336,1.32675759,2381.2,2380.9,0.06054216]
[1728045930510,4.74929,2381.4,2380.9,0.06054216]
[1728045930685,4.19947,2381.3,2380.9,0.06054216]
[1728045930887,12.36961807,2381.3,2380.9,0.06054216]
[1728045931208,8.17013807,2381.3,2380.9,0.06054216]
[1728045931516,4.19991,2381.0,2380.9,0.06054216]
[1728045932020,3.97066807,2381.1,2380.8,0.8328]
[1728045932224,8.17048807,2381.1,2380.8,0.8328]
[1728045932821,3.97066807,2381.1,2380.9,0.06054216]
[1728045932980,4.19966,2381.2,2380.9,0.06054216]
[1728045933582,8.39936,2381.2,2380.9,0.06054216]
[1728045933893,4.19966,2381.2,2380.9,0.06054216]
[1728045934608,4.74933,2381.4,2380.9,0.06054216]
[1728045935381,4.19941,2381.3,2380.9,0.06054216]
[1728045936093,4.74922,2381.4,2380.9,0.06054216]
[1728045936494,4.19941,2381.3,2380.9,0.06054216]
[1728045936686,4.74922,2381.4,2380.9,0.06054216]
[1728045936889,4.19958,2381.2,2380.9,0.06054216]
[1728045937299,3.97066807,2381.3,2380.9,0.06054216]
[1728045937300,4.74991,2381.0,2380.9,0.06054216]
[1728045937502,8.40079,2380.8,2380.5,0.7882]
[1728045937737,4.20036,2380.8,2380.5,0.7882]
[1728045937909,4.20036,2380.8,2380.6,0.06103459]
[1728045938282,8.17110807,2380.7,2380.6,0.06103459]
[1728045938605,4.20073,2380.6,2380.2,0.821]
[1728045938827,12.37166807,2380.7,2380.3,0.06145307]
[1728045939039,4.20036,2380.8,2380.3,0.06145307]
[1728045939634,4.20052,2380.7,2380.3,0.06145307]
[1728045940211,4.20064,2380.6,2380.3,0.06145307]
[1728045940414,4.20052,2380.7,2380.3,0.06145307]
[1728045940803,4.20065,2380.6,2380.3,0.06145307]
[1728045941112,4.2008,2380.5,2380.3,0.06145307]
[1728045942820,1.23718381,2380.6,2380.3,0.06145307]
[1728045943304,4.20052,2380.7,2380.3,0.06145307]
[1728045943510,0.55,2381.0,2380.4,4.20095]
[1728045943511,4.19992,2381.0,2380.4,4.20095]
[1728045943704,4.19965,2381.2,2380.5,4.99677]
[1728045944055,3.97066807,2381.3,2380.7,0.796]
[1728045944056,4.1994,2381.3,2380.7,0.796]
[1728045944206,4.19938,2381.4,2380.7,4.99643]
[1728045944592,4.19938,2381.4,2380.8,0.06091205]
[1728045944853,8.95286807,2381.6,2380.9,5.0268]
[1728045945146,4.19912,2381.5,2380.9,0.8268]
[1728045945318,4.19912,2381.5,2381.0,0.0606571]
[1728045946454,8.16953807,2381.6,2381.0,0.0606571]
[1728045946599,4.19909,2381.5,2381.0,0.0606571]
[1728045946805,3.97066807,2381.1,2381.0,0.0606571]
[1728045947043,4.19958,2381.2,2380.6,3.8031]
[1728045947212,4.19958,2381.2,2381.0,0.0606571]
[1728045947418,8.39928,2381.2,2380.6,3.8031]
[1728045947621,5.57357481,2381.2,2381.1,0.06052964]
[1728045947932,4.1995,2381.3,2380.6,8.00372]
[1728045948105,4.1995,2381.3,2380.5,4.20065]
[1728045948106,3.97066807,2381.5,2381.1,0.82172964]
[1728045948315,4.19903,2381.5,2381.1,0.7612]
[1728045948558,4.19903,2381.5,2381.2,0.06040219]
[1728045949150,3.97066807,2381.5,2381.2,0.06040219]
[1728045949357,8.17004807,2381.3,2381.2,0.06040219]
[1728045949643,8.17004807,2381.3,2380.9,0.7553]
[1728045949803,8.17004807,2381.3,2381.2,0.06041789]
[1728045950011,8.17004807,2381.3,2380.9,0.7553]
[1728045950217,8.17004807,2381.3,2381.0,0.0606728]
[1728045950543,9.50839396,2381.3,2381.0,0.0606728]
[1728045951006,4.19896,2381.6,2381.0,0.0606728]
[1728045951204,4.19894,2381.6,2381.0,0.0606728]
[1728045951409,4.19903,2381.5,2381.0,0.0606728]
[1728045952163,4.19894,2381.6,2381.1,0.7719]
[1728045952374,8.16979807,2381.5,2381.2,0.06041789]
[1728045952528,4.19882,2381.7,2381.2,0.06041789]
[1728045952529,4.19894,2381.6,2381.2,0.06041789]
[1728045952866,4.19904,2381.5,2381.2,0.06041789]
[1728045953667,4.19908,2381.5,2381.2,0.06041789]
[1728045955441,4.19887,2381.6,2381.2,0.06041789]
[1728045955643,4.19828,2382.0,2381.3,0.75]
[1728045955913,4.19823,2382.0,2381.4,4.19919]
[1728045956077,4.19823,2382.0,2381.4,4.2591869]
[1728045956225,8.39653,2382.0,2381.4,0.0599969]
[1728045956422,5.50312446,2382.0,2381.4,0.0599969]
[1728045957330,3.97066807,2381.6,2381.4,0.0599969]
[1728045957531,4.74903,2381.5,2381.4,0.0599969]
[1728045957738,4.19966,2381.2,2380.9,0.7618]
[1728045958035,4.19966,2381.2,2381.0,0.06043038]
[1728045958236,8.17001807,2381.4,2381.0,0.06043038]
[1728045958442,4.19951,2381.3,2381.0,0.06043038]
[1728045959228,3.97066807,2381.4,2381.0,0.06043038]
[1728045959425,3.97066807,2381.6,2381.0,0.06043038]
[1728045959688,4.19842,2381.9,2381.2,4.19953]
[1728045959888,4.19868,2381.7,2381.3,0.7893]
[1728045960188,4.19868,2381.7,2381.3,0.84939518]
[1728045960391,5.3138451,2381.9,2381.3,5.04868518]
[1728045960539,1.1154251,2381.9,2381.3,0.84939518]
[1728045960960,1.1154251,2381.9,2381.4,4.19917]
[1728045961272,8.16882807,2382.0,2381.5,0.05984034]
[1728045961884,8.16882807,2382.0,2381.4,4.1992]
[1728045962063,8.16882807,2382.0,2381.6,0.05971293]
[1728045962405,0.7709,2382.3,2381.7,0.05958554]
[1728045962406,3.97066807,2381.8,2381.7,0.05958554]
[1728045962580,8.16917807,2381.8,2381.7,0.05958554]
[1728045962884,3.97066807,2381.8,2381.7,0.05958554]
[1728045963088,3.97066807,2381.8,2381.3,4.98866]
[1728045963248,3.97066807,2381.8,2381.7,0.05958554]
[1728045963445,3.97066807,2381.8,2381.3,0.7893]
[1728045963674,3.97066807,2382.0,2381.7,0.05958554]
[1728045963984,4.1981,2382.1,2381.4,8.39829]
[1728045964294,4.19794,2382.2,2381.7,0.8104]
[1728045964588,4.19836,2381.9,2381.7,0.8104]
[1728045964745,3.97066807,2382.0,2381.8,0.05937961]
[1728045964941,8.16882807,2382.0,2381.7,0.8104]
[1728045965146,4.19753,2382.4,2381.7,5.00898]
[1728045965404,4.19763,2382.3,2381.9,0.8217]
[1728045965606,4.19788,2382.2,2381.9,0.8217]
[1728045965893,4.19797,2382.1,2382.0,0.05903513]
[1728045966652,4.19763,2382.3,2382.0,0.05903513]
[1728045967079,8.16822807,2382.4,2382.0,0.05903513]
[1728045967295,3.97066807,2382.2,2382.0,0.05903513]
[1728045967589,4.19797,2382.1,2382.0,0.05903513]
[1728045967913,4.19824,2382.0,2381.6,0.7983]
[1728045968081,3.97066807,2382.0,2381.6,0.7983]
[1728045968299,4.19868,2381.7,2381.6,0.7983]
[1728045968791,4.1991,2381.5,2381.3,0.8319]
[1728045968999,4.19894,2381.6,2381.3,0.8319]
[1728045969162,4.19912,2381.5,2381.3,0.8319]
[1728045969491,8.16952807,2381.6,2381.3,0.8319]
[1728045969701,4.19846,2381.9,2381.3,0.8319]
[1728045969861,4.19841,2381.9,2381.3,0.8319]
[1728045970067,1.66170268,2383.0,2381.6,1.25]
[1728045970371,3.21244612,2383.3,2383.0,20.16159732]
[1728045970570,6.21740486,2384.8,2383.0,20.16159732]
[1728045970571,4.33338973,2386.8,2386.0,4.19111]
[1728045970888,0.1201552,2387.7,2386.8,3.0]
[1728045971096,0.1201552,2387.7,2387.0,3.0]
[1728045971297,0.1201552,2387.7,2387.1,0.7713]
[1728045971593,0.1201552,2387.7,2387.2,7.18899]
[1728045971952,0.3670716,2387.6,2387.2,7.18899]
[1728045972353,0.48438262,2387.7,2387.3,0.04827856]
[1728045972649,0.48438262,2387.7,2387.1,0.7713]
[1728045972650,0.1201552,2387.7,2387.1,0.7713]
[1728045972854,4.3083052,2387.7,2387.4,0.04815177]
[1728045973151,4.3083052,2387.7,2387.1,0.7713]
[1728045973152,4.1884,2387.6,2387.1,0.7713]
[1728045973351,4.1884,2387.6,2387.2,0.04824062]
[1728045973616,4.18883,2387.3,2387.2,0.04824062]
[1728045973750,5.026564,2387.3,2387.2,0.04824062]
[1728045974082,0.837734,2387.3,2386.6,0.8198]
[1728045974393,4.18924,2387.1,2386.3,0.43707112]
[1728045974599,0.8814552,2387.7,2386.5,4.1902]
[1728045974600,9.72002349,2387.6,2386.5,4.1902]
[1728045974837,4.18865,2387.5,2386.6,3.04736832]
[1728045974988,4.18867,2387.4,2386.6,0.04736832]
[1728045975184,4.18867,2387.4,2386.4,3.0]
[1728045975445,0.418867,2387.3,2386.5,0.04749519]
[1728045976114,8.59259561,2387.6,2386.5,0.04749519]
[1728045976290,4.18867,2387.4,2386.5,0.04749519]
[1728045976633,8.59259561,2387.6,2386.6,7.19]
[1728045976634,0.55,2387.5,2386.6,7.19]
[1728045976832,0.8814552,2387.7,2386.9,4.18952]
[1728045976833,0.1201552,2387.7,2386.9,4.18952]
[1728045977034,0.55097072,2387.7,2387.0,0.04686093]
[1728045977188,0.1201552,2387.7,2387.1,0.8236]
[1728045977388,0.1201552,2387.7,2387.2,0.04660731]
[1728045977588,5.53170349,2388.0,2387.2,0.04660731]
[1728045977816,9.71933349,2388.0,2387.2,0.04660731]
[1728045978019,4.18796,2387.8,2387.2,0.04660731]
[1728045978903,4.18778,2387.9,2387.2,0.04660731]
[1728045979403,4.18815,2387.7,2387.2,0.04660731]
[1728045980620,4.18778,2387.9,2387.2,0.04660731]
[1728045980991,4.1875,2388.1,2387.2,4.23560731]
[1728045981335,4.18725,2388.2,2387.3,3.0]
[1728045981631,4.98789,2388.7,2387.8,4.18793]
[1728045981801,4.18656,2388.6,2387.9,3.04898565]
[1728045982000,4.18656,2388.6,2387.9,0.04898565]
[1728045983025,4.98789,2388.7,2387.9,0.04898565]
[1728045983026,4.18713,2388.3,2387.9,0.04898565]
[1728045983203,4.18713,2388.3,2387.6,3.0]
[1728045983405,4.18713,2388.3,2387.7,0.04925724]
[1728045983641,0.498789,2388.6,2387.7,0.04925724]
[1728045983642,4.18623,2388.8,2387.8,4.18795]
[1728045983928,4.18659,2388.6,2387.9,3.83548565]
[1728045984294,4.18685,2388.5,2387.9,3.83548565]
[1728045984490,4.18685,2388.5,2387.9,0.83548565]
[1728045984747,4.18659,2388.6,2387.9,0.83548565]
[1728045985096,8.37328,2388.6,2387.9,0.83548565]
[1728045985326,4.18687,2388.5,2387.9,0.83548565]
[1728045985531,4.1869,2388.4,2387.9,0.83548565]
[1728045985737,8.37393,2388.4,2387.9,0.83548565]
[1728045985957,4.1869,2388.4,2387.9,0.83548565]
[1728045987099,8.37332,2388.6,2387.9,0.83548565]
[1728045987314,4.18664,2388.6,2387.9,0.83548565]
[1728045987595,4.18664,2388.6,2387.9,3.83548565]
[1728045988335,8.37332,2388.6,2387.9,3.83548565]
[1728045988533,4.18664,2388.6,2387.9,3.83548565]
[1728045988694,8.37332,2388.6,2387.9,3.83548565]
[1728045988895,4.18674,2388.5,2387.9,3.83548565]
[1728045989095,4.18632,2388.8,2388.1,3.0]
[1728045989339,4.18635,2388.8,2388.1,3.0]
[1728045989526,4.18635,2388.8,2388.2,0.04835257]
[1728045989900,8.37193,2389.0,2388.2,0.04835257]
[1728045990242,8.37195,2389.0,2388.2,0.04835257]
[1728045990398,0.82,2389.1,2388.2,0.04835257]
[1728045990604,0.82,2389.2,2388.6,4.18653]
[1728045990828,0.82,2389.3,2388.7,0.05134121]
[1728045991044,0.82,2389.3,2388.5,4.18659]
[1728045991195,4.18563,2389.2,2388.6,3.05577795]
[1728045991399,8.37123,2389.2,2388.6,0.05577795]
[1728045991671,0.82,2389.3,2388.4,3.0]
[1728045992003,0.82,2389.3,2388.6,3.0]
[1728045992340,0.05,2389.2,2388.8,4.18608]
[1728045992541,0.87,2389.3,2388.7,0.05561964]
[1728045992714,0.87,2389.3,2388.9,0.05530306]
[1728045992923,0.87,2389.3,2388.8,0.05546134]
[1728045993151,0.87,2389.3,2389.0,0.05514479]
[1728045993496,0.87,2389.3,2389.1,0.05498653]
[1728045993800,0.87,2389.3,2388.7,4.18622]
[1728045994004,0.87,2389.3,2388.8,8.42716514]
[1728045994244,0.87,2389.3,2388.9,3.0]
[1728045994453,0.87,2389.3,2389.0,0.05464858]
[1728045995107,0.05,2389.1,2389.0,0.05464858]
[1728045995308,0.05,2389.1,2388.5,3.4465]
[1728045995533,0.05,2389.1,2389.0,0.05464858]
[1728045995848,4.23577,2389.1,2389.0,0.05464858]
[1728045996052,0.05,2388.9,2388.5,3.4465]
[1728045996339,0.05,2389.1,2388.7,3.0]
[1728045996711,0.05,2389.1,2388.8,0.05496514]
[1728045997043,0.05,2389.1,2388.7,3.0]
[1728045997277,0.05,2389.1,2388.8,0.05496514]
[1728045997561,0.05,2388.9,2388.8,0.05496514]
[1728045998155,0.05,2389.1,2388.7,3.0]
[1728045998340,0.05,2389.1,2388.8,0.05496514]
[1728045998518,0.82,2389.3,2388.8,0.05496514]
[1728045998519,0.87,2389.3,2388.9,4.186]
[1728045998716,4.18456,2389.8,2388.9,4.186]
[1728045998921,4.1849,2389.6,2389.0,0.05442412]
[1728045999220,4.1849,2389.6,2389.0,3.05442412]
[1728045999424,8.36981,2389.6,2389.0,3.05442412]
[1728045999627,4.18498,2389.5,2389.0,0.05442412]
[1728045999873,4.1849,2389.6,2389.0,0.05442412]
[1728046001533,4.60339,2389.6,2389.0,0.05442412]
[1728046001718,4.18497,2389.5,2389.0,0.05442412]
[1728046001918,4.18517,2389.4,2389.0,0.05442412]
[1728046002379,0.41849,2389.6,2389.0,0.05442412]
[1728046002673,0.41849,2389.6,2388.0,0.4465]
[1728046002674,4.18646,2388.7,2388.0,0.4465]
[1728046002971,5.60321615,2388.8,2388.1,0.07683244]
[1728046003142,4.18682,2388.5,2388.1,0.07683244]
[1728046003465,4.18682,2388.5,2388.2,0.06820948]
[1728046003657,4.18682,2388.5,2388.0,0.4465]
[1728046003981,4.18682,2388.5,2388.1,0.06842065]
[1728046004263,4.18725,2388.2,2388.1,0.06842065]
[1728046004469,4.18804,2387.8,2387.6,0.4465]
[1728046004814,4.18831,2387.6,2387.3,0.4465]
[1728046004945,0.7792,2388.1,2386.9,0.4465]
[1728046004946,4.18878,2387.4,2386.9,0.4465]
[1728046005142,4.18901,2387.2,2386.9,0.4465]
[1728046005390,4.18877,2387.4,2386.9,0.4465]
[1728046005693,4.607647,2387.4,2386.9,0.4465]
[1728046006002,5.53647033,2387.8,2386.9,5.05664]
[1728046006003,4.18841,2387.6,2386.9,5.05664]
[1728046006169,4.18911,2387.2,2386.9,0.4465]
[1728046006370,4.18919,2387.1,2386.6,0.4465]
[1728046006598,4.18955,2386.9,2386.6,0.4465]
[1728046006741,4.18955,2386.9,2386.2,0.56239128]
[1728046006742,4.18955,2386.9,2386.2,4.75313128]
[1728046006946,4.18955,2386.9,2386.3,0.4465]
[1728046007146,4.18981,2386.8,2386.3,0.4465]
[1728046007357,4.18955,2386.9,2386.3,0.4465]
[1728046007650,4.18955,2386.9,2386.4,0.4207]
[1728046008551,4.18923,2387.1,2386.4,0.4207]
[1728046008693,4.18892,2387.3,2386.6,4.19004]
[1728046008852,4.18856,2387.5,2386.7,4.61057]
[1728046009055,4.18859,2387.5,2386.7,4.61043]
[1728046009253,4.18913,2387.2,2386.7,0.4207]
[1728046009466,4.1885,2387.5,2386.7,4.61044]
[1728046009706,0.823,2387.8,2386.7,4.61044]
[1728046009707,4.18902,2387.2,2386.7,0.4207]
[1728046009855,8.37815,2387.2,2386.7,0.4207]
[1728046010055,4.18902,2387.2,2386.7,0.4207]
[1728046010491,4.18902,2387.2,2386.6,0.4207]
[1728046010898,4.18875,2387.4,2386.7,0.4207]
[1728046011055,4.1891,2387.2,2386.4,3.4207]
[1728046011566,4.18894,2387.3,2386.6,3.0]
[1728046011900,4.18874,2387.4,2386.6,3.0]
[1728046011901,4.18901,2387.2,2386.6,3.0]
[1728046012196,4.18848,2387.5,2387.0,3.0]
[1728046012438,4.18825,2387.7,2387.0,3.0]
[1728046012439,8.3765,2387.7,2387.0,3.0]
[1728046012655,0.30090019,2387.5,2386.8,3.0]
[1728046012922,4.18862,2387.5,2386.8,7.18969]
[1728046013215,4.18782,2387.9,2386.8,7.18969]
[1728046013216,4.18789,2387.9,2387.0,3.0]
[1728046013424,4.18789,2387.9,2387.2,4.18899]
[1728046014226,4.18769,2388.0,2387.3,4.18868]
[1728046014427,8.37507,2388.1,2387.4,4.18865]
[1728046014716,4.18788,2387.9,2387.3,3.87012686]
[1728046015320,4.18788,2387.9,2387.8,0.87012686]
[1728046015733,0.7868,2388.5,2387.8,1.30507904]
[1728046016045,4.18725,2388.2,2388.1,0.86808951]
[1728046016325,4.18725,2388.2,2388.0,2.58575754]
[1728046016678,4.18725,2388.2,2388.1,3.00645754]
[1728046017523,4.18708,2388.3,2388.1,3.07187029]
[1728046018567,8.37372,2388.5,2388.1,2.68127954]
[1728046018703,4.18684,2388.5,2388.4,2.17975915]
[1728046019018,4.18684,2388.5,2388.4,2.25263586]
[1728046019728,4.18657,2388.6,2388.4,2.25263586]
[1728046019909,4.18657,2388.6,2388.5,2.17975915]
[1728046020219,4.18672,2388.5,2388.3,2.61586679]
[1728046020420,4.18672,2388.5,2388.2,2.61586679]
[1728046020421,4.18707,2388.4,2388.2,2.61586679]
[1728046020625,4.18725,2388.2,2388.1,2.61586679]
[1728046020796,4.18725,2388.2,2388.0,0.4207]
[1728046020797,4.18725,2388.2,2388.0,2.61586679]
[1728046021140,4.18742,2388.1,2388.0,2.18085545]
[1728046021485,4.18742,2388.1,2388.0,1.745184]
[1728046021685,5.106417,2388.1,2388.0,1.745184]
[1728046021994,5.106417,2388.1,2387.9,1.745184]
[1728046021995,4.1876,2388.0,2387.9,1.745184]
[1728046022199,4.18778,2387.9,2387.8,1.745184]
[1728046022421,11.07665033,2387.9,2387.8,1.745184]
[1728046022593,11.07665033,2387.9,2387.6,2.18150627]
[1728046022594,4.73813,2387.7,2387.6,1.745184]
[1728046022792,6.68340303,2387.7,2387.6,1.745184]
[1728046023125,4.18813,2387.7,2387.6,2.18150627]
[1728046023324,4.18813,2387.7,2387.4,2.61780752]
[1728046023485,4.1883,2387.6,2387.3,3.05410878]
[1728046023695,8.37635,2387.7,2387.5,2.618272]
[1728046024093,4.18813,2387.7,2387.6,2.618272]
[1728046024293,4.18797,2387.8,2387.6,2.618272]
[1728046024753,4.18813,2387.7,2387.6,2.618272]
[1728046024959,4.18813,2387.7,2387.5,2.618272]
[1728046025246,4.18797,2387.8,2387.5,2.618272]
[1728046025713,4.18797,2387.8,2387.6,2.618272]
[1728046026311,4.18797,2387.8,2387.7,1.74536328]
[1728046026510,4.1878,2387.9,2387.7,2.1817041]
[1728046026712,0.918997,2388.1,2387.8,1.74537042]
[1728046027038,4.18778,2387.9,2387.8,1.74537042]
[1728046027213,4.18797,2387.8,2387.6,1.74537042]
[1728046028251,4.18769,2388.0,2387.5,0.87266115]
[1728046028252,4.1883,2387.6,2387.5,0.87266115]
[1728046028451,4.1883,2387.6,2387.4,0.87266115]
[1728046028761,4.18848,2387.5,2387.4,0.87266115]
[1728046029064,4.18848,2387.5,2387.3,0.87266115]
[1728046029263,4.1883,2387.6,2387.0,4.63583]
[1728046029463,4.1883,2387.6,2387.1,3.0]
[1728046030022,4.1883,2387.6,2387.0,1.31916115]
[1728046030023,4.18849,2387.5,2387.0,1.31916115]
[1728046030368,4.1883,2387.6,2387.0,4.63582]
[1728046030571,4.18849,2387.5,2387.0,0.4465]
[1728046030722,4.1883,2387.6,2387.1,3.0]
[1728046030922,4.1883,2387.6,2387.0,3.4465]
[1728046031130,4.18899,2387.3,2387.0,0.4465]
[1728046031334,4.18909,2387.2,2386.7,0.4465]
[1728046032027,1.23393,2387.6,2386.7,0.4465]
[1728046032028,10.95879033,2387.6,2386.7,0.4465]
[1728046032231,4.18936,2387.0,2386.7,0.4465]
[1728046032431,4.18918,2387.2,2386.8,0.07665885]
[1728046032672,4.18918,2387.2,2386.7,0.4465]
[1728046032872,4.18928,2387.1,2386.8,0.07665885]
[1728046033174,4.18936,2387.0,2386.7,0.4465]
[1728046033327,4.18936,2387.0,2386.4,3.0]
[1728046033328,4.18936,2387.0,2386.9,0.07642102]
[1728046033532,8.37832,2387.2,2386.8,0.07665885]
[1728046033766,4.18919,2387.1,2386.9,0.07642102]
[1728046034134,4.18919,2387.1,2386.6,3.06272896]
[1728046034368,4.18919,2387.1,2387.0,0.07618322]
[1728046034571,4.18956,2386.9,2386.4,0.4465]
[1728046034912,4.18931,2387.1,2386.4,7.63681]
[1728046035185,4.1891,2387.2,2386.6,4.18997]
[1728046035770,4.18927,2387.1,2386.6,3.0]
[1728046036165,4.1891,2387.2,2386.6,3.0]
[1728046036365,1.23393,2387.6,2386.4,0.4465]
[1728046036366,4.18955,2386.9,2386.4,3.4465]
[1728046038562,1.23393,2387.6,2386.6,3.0]
[1728046038881,4.18877,2387.4,2386.8,4.1897]
[1728046039048,4.18911,2387.2,2386.6,7.19004]
[1728046039446,4.18911,2387.2,2386.6,3.0]
[1728046039641,4.18911,2387.2,2386.4,3.4465]
[1728046039642,4.18936,2387.0,2386.4,3.4465]
[1728046039878,8.37888,2387.0,2386.4,3.4465]
[1728046040084,4.18957,2386.9,2386.4,3.4465]
[1728046040292,4.18871,2387.4,2386.4,0.4465]
[1728046040293,4.18979,2386.8,2386.4,0.4465]
[1728046040583,4.18953,2386.9,2386.4,0.4465]
[1728046040787,4.18947,2387.0,2386.4,4.6369]
[1728046040997,4.18967,2386.9,2386.4,0.4465]
[1728046041148,4.18947,2387.0,2386.5,4.19023]
[1728046041495,0.8151,2387.6,2386.4,5.50944115]
[1728046041785,4.18908,2387.2,2386.6,4.18993]
[1728046041990,4.18876,2387.4,2386.6,4.18993]
[1728046042186,4.18876,2387.4,2386.8,4.18953]
[1728046042388,4.18876,2387.4,2386.9,4.18952]
[1728046042698,5.0035,2387.6,2386.6,4.1899]
[1728046042699,4.18886,2387.3,2386.6,4.1899]
[1728046042893,4.18914,2387.2,2386.6,4.1899]
[1728046043096,8.37781,2387.3,2386.7,4.18988]
[1728046043396,4.189,2387.2,2386.7,4.18988]
[1728046043628,0.837786,2387.2,2386.5,3.87266115]
[1728046043753,4.18954,2386.9,2386.4,3.4465]
[1728046044269,4.18954,2386.9,2386.4,0.4465]
[1728046044444,4.18996,2386.7,2386.3,0.87266115]
[1728046045351,8.37995,2386.7,2386.4,0.87266115]
[1728046045553,4.19014,2386.6,2386.4,0.87266115]
[1728046045757,4.19014,2386.6,2386.3,0.87266115]
[1728046046298,8.37995,2386.7,2386.4,0.87266115]
[1728046046462,0.7912,2387.0,2386.4,0.87266115]
[1728046046665,4.19008,2386.6,2386.4,0.87266115]
[1728046047076,0.7912,2387.0,2386.4,0.87266115]
[1728046047299,4.98066,2387.0,2386.6,0.87266115]
[1728046047588,4.18866,2387.4,2386.6,0.87266115]
[1728046047589,4.18901,2387.2,2386.7,0.06231353]
[1728046047791,4.18901,2387.2,2386.7,5.12483468]
[1728046047998,4.18901,2387.2,2386.7,0.93497468]
[1728046048203,4.18901,2387.2,2386.8,0.87266115]
[1728046048406,4.18936,2387.0,2386.8,0.87266115]
[1728046048570,0.500021,2387.2,2386.9,0.06193299]
[1728046048571,4.18921,2387.1,2386.9,0.06193299]
[1728046049405,4.18908,2387.2,2387.0,0.87266115]
[1728046049696,4.18908,2387.2,2387.1,0.06155252]
[1728046049997,4.18908,2387.2,2386.9,0.87266115]
[1728046049998,4.18932,2387.1,2386.9,0.87266115]
[1728046050294,4.18935,2387.0,2386.8,1.30889553]
[1728046050496,4.18919,2387.1,2386.9,0.87786168]
[1728046050795,4.18919,2387.1,2386.9,0.87783276]
[1728046051097,4.18935,2387.0,2386.9,0.87783276]
[1728046051281,4.18902,2387.2,2386.9,0.87783276]
[1728046051455,4.18921,2387.1,2386.9,0.87783276]
[1728046051996,8.37853,2387.1,2386.9,0.87783276]
[1728046052593,8.37849,2387.1,2386.9,0.87783276]
[1728046052802,4.18921,2387.1,2386.9,0.87783276]
[1728046053670,8.37852,2387.1,2386.9,0.87783276]
[1728046053993,4.18921,2387.1,2386.9,0.87783276]
[1728046054203,8.37851,2387.1,2386.9,0.87783276]
[1728046054400,4.18921,2387.1,2386.9,0.87783276]
[1728046055302,4.18878,2387.4,2386.9,0.87783276]
[1728046055506,4.18878,2387.4,2387.0,0.87783276]
[1728046056003,0.8154,2387.7,2387.0,0.87783276]
[1728046056297,0.8154,2387.7,2387.1,0.87783276]
[1728046056496,4.1886,2387.5,2387.1,0.87783276]
[1728046056708,4.18885,2387.3,2387.1,0.87783276]
[1728046057278,4.18885,2387.3,2387.0,0.87783276]
[1728046057495,4.18885,2387.3,2387.1,0.87783276]
[1728046057691,4.18885,2387.3,2387.0,0.87783276]
[1728046057894,4.18859,2387.5,2387.0,0.87783276]
[1728046058096,6.89549167,2397.4,2386.9,8.49842553]
[1728046058097,0.7608,2388.0,2387.3,4.18875]
[1728046058386,0.7608,2388.0,2387.4,4.18852]
[1728046058387,4.1877,2388.0,2387.4,4.18852]
[1728046058698,0.8098,2388.3,2387.3,0.4465]
[1728046058699,0.8098,2388.3,2387.3,1.32433276]
[1728046058885,4.99646,2388.6,2388.0,4.18751]
[1728046059235,0.8098,2388.9,2388.0,2.63322829]
[1728046059381,5.0036,2389.2,2388.6,4.18638]
[1728046059580,4.18536,2389.3,2388.7,4.18635]
[1728046059787,4.18524,2389.4,2388.7,5.06418276]
[1728046060009,4.18552,2389.2,2388.8,0.08371182]
[1728046060335,4.18552,2389.2,2388.6,4.18638]
[1728046060482,4.18536,2389.3,2388.6,4.18638]
[1728046060820,4.18536,2389.3,2388.6,8.3728]
[1728046061206,4.18536,2389.3,2388.6,4.18638]
[1728046061412,4.18552,2389.2,2388.6,4.18638]
[1728046062137,4.18552,2389.2,2388.4,9.24077]
[1728046062138,4.1857,2389.1,2388.4,9.24077]
[1728046062424,0.7892,2389.0,2388.4,0.8672]
[1728046062626,0.7892,2389.0,2388.5,0.07187993]
[1728046062781,4.18617,2388.9,2388.5,0.07187993]
[1728046063230,4.18578,2389.1,2388.5,0.07187993]
[1728046063396,4.18577,2389.1,2388.5,4.25859993]
[1728046063602,0.7892,2389.3,2388.5,0.07187993]
[1728046063793,4.93577,2389.8,2388.5,0.07187993]
[1728046064031,4.18526,2389.4,2388.7,4.18623]
[1728046064234,4.18526,2389.4,2388.8,4.18619]
[1728046064381,4.18526,2389.4,2388.8,4.2573864]
[1728046064823,8.37027,2389.5,2388.9,4.18593]
[1728046065034,4.18513,2389.5,2388.9,4.18593]
[1728046065199,4.18507,2389.5,2389.0,0.08082464]
[1728046066599,4.18475,2389.7,2389.0,0.52732464]
[1728046066801,4.18482,2389.6,2389.1,4.23223513]
[1728046067001,4.93586,2389.8,2389.0,4.71316464]
[1728046067228,4.18465,2389.7,2389.2,4.26558238]
[1728046067391,4.84076534,2389.7,2389.2,4.18547]
[1728046067595,4.18482,2389.6,2389.3,0.07984113]
[1728046067891,4.18482,2389.6,2389.1,4.18558]
[1728046068088,4.18482,2389.6,2389.2,0.08011238]
[1728046068295,4.18482,2389.6,2389.0,4.63225]
[1728046068296,4.18498,2389.5,2389.0,4.63225]
[1728046068691,4.84078534,2389.7,2389.2,4.18547]
[1728046069014,4.18481,2389.6,2389.3,0.07984113]
[1728046069331,4.18481,2389.6,2389.0,4.63223]
[1728046069647,4.84078534,2389.7,2389.4,0.07956989]
[1728046069953,0.65611534,2389.7,2389.5,0.07929868]
[1728046070301,4.18511,2389.5,2389.0,0.4465]
[1728046070610,4.18511,2389.5,2389.1,0.08038366]
[1728046070994,4.1848,2389.6,2389.1,0.08038366]
[1728046071323,4.18494,2389.6,2389.1,0.08038366]
[1728046071496,1.14017987,2389.7,2389.1,0.08038366]